[Event "WYCC 2018 O14"]
[Site "Halkidiki"]
[Date "2018.10.26"]
[Round "7"]
[White "Chatzieleftheriou, Andreas"]
[Black "Patrelakis, Evaggelos"]
[Result "1/2-1/2"]
[ECO "B81"]
[WhiteElo "1984"]
[BlackElo "2146"]
[Annotator "NA"]
[PlyCount "115"]
[EventDate "2018.10.20"]
[EventType "swiss"]
[EventCountry "GRE"]
[SourceTitle "playchess.com"]
[Source "ChessBase"]
[SourceQuality "1"]
[TimeControl "40/5400+30:1800+30"]

1. e4 {[%emt 0:00:00]} c5 {[%emt 0:00:00]} 2. Nf3 {[%emt 0:00:00]} e6 {[%emt 0:00:00]} 3. d4 {[%emt 0:00:00]} cxd4 {[%emt 0:00:00]} 4. Nxd4 {[%emt 0:00:00]} Nf6 {[%emt 0:00:12]} 5. Nc3 {[%emt 0:00:00]} d6 $11 {[%emt 0:00:06] LiveBook: 12461 Partien} 6. g4 {[%emt 0:00:00]} a6 {[%emt 0:00:16]} 7. g5 {[%emt 0:04:18]} Nfd7 {[%emt 0:00:18]} 8. Be3 {[%emt 0:02:14]} b5 {[%emt 0:00:35]} 9. a3 {[%emt 0:01:02]} Bb7 {[%emt 0:00:13]} 10. f4 {[%emt 0:03:49]} Qc7 {[%emt 0:04:15]} 11. f5 {[%emt 0:12:38]} e5 {[%emt 0:13:31]} 12. Nb3 {[%emt 0:00:42]} Nb6 {[%emt 0:10:10]} 13. Na5 {[%emt 0:09:34]} Na4 {[%emt 0:06:18]} 14. Nxb7 {[%emt 0:04:08]} Nxc3 {[%emt 0:14:10]} 15. bxc3 {[%emt 0:01:15]} Qxb7 {[%emt 0:00:44]} 16. Qd5 {[%emt 0:03:52]} Qxd5 {[%emt 0:13:51]} 17. exd5 {[%emt 0:00:02]} Be7 {[%emt 0:03:22]} 18. c4 {[%emt 0:06:01]} bxc4 {[%emt 0:00:07]} 19. Bxc4 {[%emt 0:00:01]} Nd7 {[%emt 0:01:01]} 20. Rb1 {[%emt 0:05:54]} O-O {[%emt 0:03:21]} 21. Ke2 {[%emt 0:20:05]} Rfc8 {[%emt 0:03:07]} 22. Rb7 {[%emt 0:02:37]} Rxc4 {[%emt 0:00:44]} 23. Rxd7 {[%emt 0:00:06]} Bf8 {[%emt 0:01:02]} 24. Rb1 {[%emt 0:09:20]} Rxc2+ {[%emt 0:02:31]} 25. Bd2 {[%emt 0:00:26]} Rac8 {[%emt 0:04:54]} 26. Rb3 {[%emt 0:03:23]} Ra2 {[%emt 0:02:51]} 27. Ra7 {[%emt 0:02:59]} Rcc2 {[%emt 0:07:35]} 28. Rd3 {[%emt 0:00:27]} Rc4 {[%emt 0:00:24]} 29. Ra8 {[%emt 0:03:00]} Rb2 {[%emt 0:00:50]} 30. Kd1 {[%emt 0:02:54]} e4 {[%emt 0:03:22]} 31. Rc3 {[%emt 0:01:10]} Rxc3 {[%emt 0:00:18]} 32. Bxc3 {[%emt 0:00:01]} Rb5 {[%emt 0:00:00]} 33. f6 {[%emt 0:02:37]} Rxd5+ {[%emt 0:01:03]} 34. Ke2 {[%emt 0:00:19]} gxf6 {[%emt 0:04:43]} 35. Bxf6 {[%emt 0:00:48]} Rd3 {[%emt 0:00:52]} 36. Be7 {[%emt 0:00:21]} Kg7 {[%emt 0:00:01]} 37. Bxf8+ {[%emt 0:00:24]} Kg6 {[%emt 0:00:01]} 38. Rxa6 {[%emt 0:00:21]} Kxg5 {[%emt 0:00:12]} 39. Rxd6 {[%emt 0:01:25]} Rb3 {[%emt 0:01:14]} 40. Rd7 {[%emt 0:00:00]} f5 {[%emt 0:00:00]} 41. Rg7+ {[%emt 0:04:50]} Kf6 {[%emt 0:01:34]} 42. Rxh7 {[%emt 0:03:44]} f4 {[%emt 0:04:25]} 43. Bc5 {[%emt 0:13:14]} Rb2+ {[%emt 0:02:06]} 44. Kd1 {[%emt 0:01:07]} Ra2 {[%emt 0:01:15]} 45. h3 {[%emt 0:04:05]} e3 {[%emt 0:01:49]} 46. Re7 {[%emt 0:01:55]} Rh2 {[%emt 0:01:15]} 47. Re8 {[%emt 0:00:59]} Rxh3 {[%emt 0:00:59]} 48. a4 {[%emt 0:01:02]} Rh2 {[%emt 0:03:01]} 49. Bxe3 {[%emt 0:01:33]} fxe3 {[%emt 0:00:23]} 50. Rxe3 {[%emt 0:00:17]} Ra2 {[%emt 0:00:02]} 51. Re4 {[%emt 0:00:15]} Kf5 {[%emt 0:00:01]} 52. Rb4 {[%emt 0:00:39]} Ke5 {[%emt 0:00:07]} 53. Kc1 {[%emt 0:00:03]} Kd5 {[%emt 0:00:07]} 54. Kb1 {[%emt 0:00:16]} Rh2 {[%emt 0:00:06]} 55. a5 {[%emt 0:00:46]} Kc5 {[%emt 0:00:09]} 56. Rb8 {[%emt 0:00:24]} Rh6 {[%emt 0:00:21]} 57. Kb2 {[%emt 0:00:20]} Ra6 {[%emt 0:00:08]} 58. Rh8 {[%emt 0:00:10]} 1/2-1/2

[Event "WYCC 2018 O14"]
[Site "Halkidiki"]
[Date "2018.10.26"]
[Round "7"]
[White "Domalchuk-Jonasson, Aleksandr"]
[Black "Manafov, Vugar"]
[Result "0-1"]
[ECO "E42"]
[WhiteElo "1963"]
[BlackElo "2245"]
[Annotator "NA"]
[PlyCount "88"]
[EventDate "2018.10.20"]
[EventType "swiss"]
[EventCountry "GRE"]
[SourceTitle "playchess.com"]
[Source "ChessBase"]
[SourceQuality "1"]
[TimeControl "40/5400+30:1800+30"]

1. d4 {[%emt 0:00:00]} Nf6 {[%emt 0:00:00]} 2. c4 {[%emt 0:00:00]} e6 {[%emt 0:00:00]} 3. Nc3 {[%emt 0:00:00]} Bb4 {[%emt 0:00:02]} 4. e3 {[%emt 0:00:00]} c5 {[%emt 0:00:02]} 5. Nge2 {[%emt 0:00:00]} cxd4 {[%emt 0:00:21]} 6. exd4 {[%emt 0:00:00]} O-O {[%emt 0:00:05]} 7. a3 {[%emt 0:01:42]} Be7 {[%emt 0:00:10]} 8. Nf4 {[%emt 0:01:28]} d6 {[%emt 0:00:41]} 9. Be2 {[%emt 0:01:17]} Nc6 {[%emt 0:04:28]} 10. Be3 {[%emt 0:00:18]} a5 {[%emt 0:06:47]} 11. O-O {[%emt 0:01:57]} d5 {[%emt 0:04:42]} 12. cxd5 {[%emt 0:03:38]} exd5 {[%emt 0:13:59]} 13. Qb3 {[%emt 0:00:54]} a4 {[%emt 0:01:57]} 14. Nxa4 {[%emt 0:04:53]} Na5 {[%emt 0:02:38]} 15. Qa2 {[%emt 0:09:32]} Nc4 {[%emt 0:01:51]} 16. Nc3 {[%emt 0:03:51]} Nxe3 {[%emt 0:02:12]} 17. fxe3 {[%emt 0:00:06]} Be6 {[%emt 0:01:08]} 18. Bf3 {[%emt 0:00:36]} Bd6 {[%emt 0:01:51]} 19. Nxe6 {[%emt 0:23:21]} fxe6 {[%emt 0:00:09]} 20. Qb3 {[%emt 0:00:05]} Qc7 {[%emt 0:01:04]} 21. h3 {[%emt 0:00:15]} Rad8 {[%emt 0:02:02]} 22. Rac1 {[%emt 0:01:33]} Qe7 {[%emt 0:04:16]} 23. e4 {[%emt 0:05:08]} dxe4 {[%emt 0:04:02]} 24. Nxe4 {[%emt 0:00:32]} Nxe4 {[%emt 0:07:22]} 25. Bxe4 {[%emt 0:00:06]} Bf4 {[%emt 0:00:37]} 26. Rcd1 {[%emt 0:03:31]} Kh8 {[%emt 0:07:02]} 27. Rfe1 {[%emt 0:07:44]} Bb8 {[%emt 0:11:43]} 28. g3 {[%emt 0:08:47]} Ba7 {[%emt 0:03:35]} 29. Bg2 {[%emt 0:08:20]} Bxd4+ {[%emt 0:01:42]} 30. Kh2 {[%emt 0:00:06]} e5 {[%emt 0:01:14]} 31. Re2 {[%emt 0:03:18]} b6 {[%emt 0:01:21]} 32. Qc4 {[%emt 0:01:35]} Qg5 {[%emt 0:01:04]} 33. h4 {[%emt 0:01:58]} Qg4 {[%emt 0:03:23]} 34. Qb5 {[%emt 0:03:26]} Bf2 {[%emt 0:06:36]} 35. Rd3 {[%emt 0:00:04]} Rxd3 {[%emt 0:00:30]} 36. Qxd3 {[%emt 0:00:04]} Bxg3+ {[%emt 0:00:05]} 37. Kg1 {[%emt 0:00:45]} Qxh4 {[%emt 0:00:14]} 38. Be4 {[%emt 0:00:23]} Bf2+ {[%emt 0:00:29]} 39. Kg2 Qg4+ {[%emt 0:00:27]} 40. Kh2 {[%emt 0:00:00]} Bg1+ {[%emt 0:00:00]} 41. Kh1 {[%emt 0:00:56]} Bd4 {[%emt 0:01:06]} 42. Rg2 {[%emt 0:01:24]} Rf1+ {[%emt 0:00:18]} 43. Kh2 {[%emt 0:00:11]} Qh4+ {[%emt 0:00:06]} 44. Qh3 {[%emt 0:00:05]} Rh1+ {[%emt 0:00:02]} 0-1

[Event "WYCC 2018 O14"]
[Site "Halkidiki"]
[Date "2018.10.26"]
[Round "7"]
[White "Bolognese, Leonardo"]
[Black "Turcan, Richard"]
[Result "1-0"]
[ECO "D91"]
[WhiteElo "1947"]
[BlackElo "2218"]
[Annotator "NA"]
[PlyCount "65"]
[EventDate "2018.10.20"]
[EventType "swiss"]
[EventCountry "GRE"]
[SourceTitle "playchess.com"]
[Source "ChessBase"]
[SourceQuality "1"]
[TimeControl "40/5400+30:1800+30"]

1. d4 {[%emt 0:00:00]} Nf6 {[%emt 0:00:00]} 2. c4 {[%emt 0:00:00]} g6 {[%emt 0:00:00]} 3. Nc3 {[%emt 0:00:04]} d5 {[%emt 0:00:00]} 4. Nf3 {[%emt 0:01:26]} Bg7 {[%emt 0:00:51]} 5. Bg5 {[%emt 0:00:15]} Ne4 {[%emt 0:04:35]} 6. cxd5 {[%emt 0:01:12]} Nxg5 {[%emt 0:02:14]} 7. Nxg5 {[%emt 0:00:16]} e6 {[%emt 0:13:14]} 8. Qa4+ {[%emt 0:02:05]} Bd7 {[%emt 0:00:44]} 9. Qb3 {[%emt 0:00:08]} exd5 {[%emt 0:08:44]} 10. Qxd5 {[%emt 0:18:29]} O-O {[%emt 0:00:17]} 11. Nf3 {[%emt 0:02:16]} Nc6 {[%emt 0:01:33]} 12. e3 {[%emt 0:02:03]} Nb4 {[%emt 0:08:40]} 13. Qb3 {[%emt 0:05:15]} c5 {[%emt 0:01:36]} 14. dxc5 {[%emt 0:09:36]} Qa5 {[%emt 0:02:26]} 15. a3 {[%emt 0:02:42]} Nd5 {[%emt 0:02:59]} 16. O-O-O {[%emt 0:12:21]} Bxc3 {[%emt 0:17:12]} 17. Rxd5 {[%emt 0:07:18]} Be6 {[%emt 0:01:13]} 18. Bc4 {[%emt 0:08:21]} Bxd5 {[%emt 0:02:17]} 19. Bxd5 {[%emt 0:00:10]} Bf6 {[%emt 0:08:40]} 20. Kb1 {[%emt 0:03:46]} Qxc5 {[%emt 0:03:01]} 21. Rc1 {[%emt 0:00:54]} Qd6 {[%emt 0:01:59]} 22. Rd1 {[%emt 0:02:00]} Qe7 {[%emt 0:00:07]} 23. e4 {[%emt 0:00:34]} Rfd8 {[%emt 0:01:37]} 24. h4 Rac8 {[%emt 0:05:36]} 25. e5 {[%emt 0:12:29]} Bg7 {[%emt 0:06:17]} 26. Ng5 {[%emt 0:00:25]} Rf8 {[%emt 0:01:43]} 27. e6 {[%emt 0:03:00]} f6 {[%emt 0:04:43]} 28. Bxb7 {[%emt 0:01:32]} Rc7 {[%emt 0:01:06]} 29. Rd7 {[%emt 0:00:42]} Rxd7 {[%emt 0:00:33]} 30. exd7+ {[%emt 0:00:10]} Kh8 {[%emt 0:00:07]} 31. Qe6 {[%emt 0:02:00]} Qd8 {[%emt 0:00:54]} 32. Nf7+ {[%emt 0:01:08]} Rxf7 {[%emt 0:00:04]} 33. Qxf7 {[%emt 0:00:06]} 1-0

[Event "WYCC 2018 O14"]
[Site "Halkidiki"]
[Date "2018.10.26"]
[Round "7"]
[White "Unneland, Mathias"]
[Black "Karadzhov, Ivan"]
[Result "0-1"]
[ECO "D16"]
[WhiteElo "1884"]
[BlackElo "2040"]
[Annotator "NA"]
[PlyCount "102"]
[EventDate "2018.10.20"]
[EventType "swiss"]
[EventCountry "GRE"]
[SourceTitle "playchess.com"]
[Source "ChessBase"]
[SourceQuality "1"]
[TimeControl "40/5400+30:1800+30"]

1. d4 {[%emt 0:00:00]} d5 {[%emt 0:00:00]} 2. c4 {[%emt 0:00:00]} c6 {[%emt 0:00:01]} 3. Nf3 {[%emt 0:00:10]} Nf6 {[%emt 0:00:18]} 4. Nc3 {[%emt 0:00:10]} dxc4 {[%emt 0:01:01]} 5. a4 {[%emt 0:00:28]} g6 {[%emt 0:02:46]} 6. e3 {[%emt 0:02:11]} Be6 {[%emt 0:00:45]} 7. Ne5 {[%emt 0:03:10]} Bg7 {[%emt 0:01:06]} 8. Bxc4 {[%emt 0:02:05]} Bxc4 {[%emt 0:01:05]} 9. Nxc4 {[%emt 0:00:07]} O-O {[%emt 0:00:56]} 10. O-O {[%emt 0:00:38]} Nbd7 {[%emt 0:02:38]} 11. b4 {[%emt 0:05:52]} Qc7 {[%emt 0:07:39]} 12. f4 {[%emt 0:05:21]} Nd5 {[%emt 0:11:26]} 13. Nxd5 {[%emt 0:05:16]} cxd5 {[%emt 0:00:06]} 14. Ne5 {[%emt 0:01:13]} f6 {[%emt 0:06:27]} 15. Nxd7 {[%emt 0:03:49]} Qxd7 {[%emt 0:01:18]} 16. Qb3 {[%emt 0:00:49]} e5 {[%emt 0:05:47]} 17. e4 {[%emt 0:03:18]} Kh8 {[%emt 0:10:57]} 18. Qxd5 {[%emt 0:04:59]} Qxd5 {[%emt 0:03:33]} 19. exd5 {[%emt 0:00:07]} e4 {[%emt 0:07:32]} 20. Be3 {[%emt 0:01:35]} Rad8 {[%emt 0:07:00]} 21. Rac1 {[%emt 0:01:33]} Rf7 {[%emt 0:05:49]} 22. Rc4 {[%emt 0:02:24]} Rxd5 {[%emt 0:01:46]} 23. Rfc1 {[%emt 0:02:30]} Bf8 {[%emt 0:02:33]} 24. Rc8 {[%emt 0:03:43]} Kg7 {[%emt 0:01:06]} 25. b5 {[%emt 0:04:21]} f5 {[%emt 0:03:40]} 26. R1c7 {[%emt 0:01:29]} Rfd7 {[%emt 0:02:59]} 27. Kf2 {[%emt 0:04:09]} Be7 {[%emt 0:01:32]} 28. Rc4 {[%emt 0:03:02]} Bf6 {[%emt 0:00:49]} 29. R8c7 {[%emt 0:00:27]} Kf7 {[%emt 0:01:00]} 30. Ke2 {[%emt 0:02:12]} Ke6 {[%emt 0:00:50]} 31. Rxd7 {[%emt 0:00:44]} Kxd7 {[%emt 0:01:35]} 32. h3 {[%emt 0:01:34]} Be7 {[%emt 0:02:08]} 33. g4 {[%emt 0:00:44]} a6 {[%emt 0:01:23]} 34. bxa6 {[%emt 0:00:09]} bxa6 {[%emt 0:00:05]} 35. g5 {[%emt 0:01:00]} Rd6 {[%emt 0:01:13]} 36. Rb4 {[%emt 0:01:44]} Rc6 {[%emt 0:00:34]} 37. Rb7+ {[%emt 0:00:54]} Rc7 {[%emt 0:00:29]} 38. Rb6 {[%emt 0:04:28]} a5 {[%emt 0:01:21]} 39. Bd2 {[%emt 0:02:53]} Rc4 {[%emt 0:03:56]} 40. Rb7+ {[%emt 0:00:00]} Ke8 {[%emt 0:00:00]} 41. Bxa5 {[%emt 0:07:32]} Rxd4 {[%emt 0:05:52]} 42. Bd2 {[%emt 0:00:40]} Rxa4 {[%emt 0:00:26]} 43. Rb8+ {[%emt 0:00:30]} Bd8 {[%emt 0:04:22]} 44. Rb7 {[%emt 0:03:09]} Ra2 {[%emt 0:01:20]} 45. Kd1 {[%emt 0:01:26]} Be7 {[%emt 0:05:38]} 46. Rb8+ {[%emt 0:01:05]} Kd7 {[%emt 0:03:49]} 47. Rb7+ {[%emt 0:01:53]} Ke6 {[%emt 0:00:19]} 48. Rb6+ {[%emt 0:00:59]} Kd5 {[%emt 0:00:36]} 49. Rb7 {[%emt 0:01:26]} Bc5 {[%emt 0:01:11]} 50. Rb3 {[%emt 0:05:09]} e3 {[%emt 0:03:10]} 51. Bxe3 {[%emt 0:00:28] Ke5} Kc4 {[%emt 0:00:30]} 0-1

[Event "WYCC 2018 O14"]
[Site "Halkidiki"]
[Date "2018.10.26"]
[Round "7"]
[White "Tsarsitalidis, Konstantinos"]
[Black "Torngren, Gustav"]
[Result "0-1"]
[ECO "B35"]
[WhiteElo "1864"]
[BlackElo "2107"]
[Annotator "NA"]
[PlyCount "140"]
[EventDate "2018.10.20"]
[EventType "swiss"]
[EventCountry "GRE"]
[SourceTitle "playchess.com"]
[Source "ChessBase"]
[SourceQuality "1"]
[TimeControl "40/5400+30:1800+30"]

1. e4 {[%emt 0:00:00]} c5 {[%emt 0:00:19]} 2. Nf3 {[%emt 0:00:00]} Nc6 {[%emt 0:00:10]} 3. d4 {[%emt 0:00:00]} cxd4 {[%emt 0:00:07]} 4. Nxd4 {[%emt 0:00:00]} g6 {[%emt 0:00:09]} 5. Nc3 {[%emt 0:00:00]} Bg7 {[%emt 0:00:09]} 6. Be3 {[%emt 0:00:01]} Nf6 {[%emt 0:00:13]} 7. Bc4 {[%emt 0:00:08]} Qa5 {[%emt 0:00:08]} 8. O-O {[%emt 0:00:07]} O-O {[%emt 0:00:07]} 9. Bb3 {[%emt 0:01:10]} d6 {[%emt 0:00:14]} 10. Nd5 {[%emt 0:00:06]} Qd8 {[%emt 0:00:10]} 11. Nxf6+ {[%emt 0:00:12]} Bxf6 {[%emt 0:00:16]} 12. c3 {[%emt 0:00:05]} Bd7 {[%emt 0:02:17]} 13. f4 {[%emt 0:14:23]} Na5 {[%emt 0:05:51]} 14. Qe2 {[%emt 0:14:33]} Qc8 {[%emt 0:10:49]} 15. h3 {[%emt 0:04:14]} a6 {[%emt 0:02:51]} 16. Rac1 {[%emt 0:17:00]} Nxb3 {[%emt 0:03:10]} 17. axb3 {[%emt 0:00:10]} b5 {[%emt 0:00:29]} 18. e5 {[%emt 0:05:19]} dxe5 {[%emt 0:00:50]} 19. fxe5 {[%emt 0:00:01]} Bg7 {[%emt 0:01:30]} 20. Bf4 {[%emt 0:01:06]} Qc5 {[%emt 0:03:10]} 21. b4 {[%emt 0:04:44]} Qb6 {[%emt 0:01:26]} 22. Kh2 {[%emt 0:01:40]} Be6 {[%emt 0:03:21]} 23. Qe4 {[%emt 0:01:31]} Bc4 {[%emt 0:03:11]} 24. Rfd1 {[%emt 0:02:02]} e6 {[%emt 0:00:10]} 25. Nc2 {[%emt 0:04:54]} Bd5 {[%emt 0:00:41]} 26. Qe2 {[%emt 0:00:28]} Qc7 {[%emt 0:06:48]} 27. Rd4 {[%emt 0:02:54]} Rfd8 {[%emt 0:00:43]} 28. Rcd1 {[%emt 0:02:24]} Bb3 {[%emt 0:01:27]} 29. Rxd8+ {[%emt 0:01:17]} Rxd8 {[%emt 0:00:04]} 30. Rxd8+ {[%emt 0:00:14]} Qxd8 {[%emt 0:00:08]} 31. Nd4 {[%emt 0:00:19]} Bd5 {[%emt 0:00:23]} 32. Qe3 {[%emt 0:02:02]} Qc7 {[%emt 0:00:26]} 33. b3 {[%emt 0:04:22]} h5 {[%emt 0:00:26]} 34. Bg3 {[%emt 0:04:13]} Qb6 {[%emt 0:01:38]} 35. Qg5 {[%emt 0:11:17]} Qc7 {[%emt 0:00:43]} 36. Qe3 {[%emt 0:00:05]} Qb8 {[%emt 0:00:17]} 37. Qf4 {[%emt 0:01:27]} h4 {[%emt 0:04:16]} 38. Qxh4 {[%emt 0:00:14]} Bxe5 {[%emt 0:00:08]} 39. Bxe5 {[%emt 0:00:24]} Qxe5+ {[%emt 0:00:01]} 40. Qg3 {[%emt 0:00:00]} Qe4 {[%emt 0:00:00]} 41. Qb8+ {[%emt 0:10:26]} Kg7 {[%emt 0:05:49]} 42. Qg3 {[%emt 0:00:52]} Kf6 {[%emt 0:05:52]} 43. Qf2+ {[%emt 0:00:58]} Ke7 {[%emt 0:00:16]} 44. Nf3 {[%emt 0:06:01]} Qf4+ {[%emt 0:06:27]} 45. Kg1 {[%emt 0:01:14]} Qc1+ {[%emt 0:02:38]} 46. Qe1 {[%emt 0:01:47]} Qxe1+ {[%emt 0:00:12]} 47. Nxe1 {[%emt 0:00:01]} Bxb3 {[%emt 0:00:28]} 48. Nd3 {[%emt 0:00:01]} Kd6 {[%emt 0:00:55]} 49. Nc5 {[%emt 0:00:14]} Bd5 {[%emt 0:01:58]} 50. Nxa6 {[%emt 0:00:07]} Bc6 {[%emt 0:00:12]} 51. Kf2 {[%emt 0:02:36]} Kd5 {[%emt 0:00:39]} 52. Nb8 {[%emt 0:02:12]} Bb7 {[%emt 0:02:48]} 53. Nd7 {[%emt 0:01:00]} Kc4 {[%emt 0:00:18]} 54. Ne5+ {[%emt 0:00:05]} Kxc3 {[%emt 0:00:14]} 55. Nxf7 {[%emt 0:00:01]} Kxb4 {[%emt 0:00:25]} 56. g4 {[%emt 0:05:59]} Kc3 {[%emt 0:01:42]} 57. Nd6 {[%emt 0:00:07]} Bc6 {[%emt 0:00:11]} 58. h4 {[%emt 0:00:33]} Kd4 {[%emt 0:05:25]} 59. h5 {[%emt 0:00:53]} gxh5 {[%emt 0:00:46]} 60. gxh5 {[%emt 0:00:01]} Ke5 {[%emt 0:00:03]} 61. h6 {[%emt 0:00:11]} Kf6 {[%emt 0:00:14]} 62. Ke3 {[%emt 0:00:13]} b4 {[%emt 0:02:11]} 63. Nc4 {[%emt 0:09:43]} Bd5 {[%emt 0:00:33]} 64. Ne5 {[%emt 0:00:36]} b3 {[%emt 0:00:13]} 65. Nd3 {[%emt 0:00:10]} Kg6 {[%emt 0:00:45]} 66. Kd4 {[%emt 0:00:09]} Kxh6 {[%emt 0:00:22]} 67. Kc3 {[%emt 0:00:14]} Kg5 {[%emt 0:00:13]} 68. Nb4 {[%emt 0:00:29]} Kf4 {[%emt 0:00:26]} 69. Nxd5+ {[%emt 0:00:12]} exd5 {[%emt 0:00:08]} 70. Kxb3 {[%emt 0:00:02]} Ke3 {[%emt 0:00:11]} 0-1

[Event "WYCC 2018 O14"]
[Site "Halkidiki"]
[Date "2018.10.26"]
[Round "7"]
[White "Vujovic, Savo"]
[Black "Marn, Jan"]
[Result "0-1"]
[ECO "C88"]
[WhiteElo "1781"]
[BlackElo "2125"]
[Annotator "NA"]
[PlyCount "52"]
[EventDate "2018.10.20"]
[EventType "swiss"]
[EventCountry "GRE"]
[SourceTitle "playchess.com"]
[Source "ChessBase"]
[SourceQuality "1"]
[TimeControl "40/5400+30:1800+30"]

1. e4 {[%emt 0:00:00]} e5 {[%emt 0:00:00]} 2. Nf3 {[%emt 0:00:00]} Nc6 {[%emt 0:00:00]} 3. Bb5 {[%emt 0:00:00]} a6 {[%emt 0:00:00]} 4. Ba4 {[%emt 0:00:00]} Nf6 {[%emt 0:00:00]} 5. O-O {[%emt 0:00:00]} Be7 $11 {[%emt 0:00:13] LiveBook: 36347 Games} 6. Re1 {[%emt 0:00:18]} b5 {[%emt 0:00:05]} 7. Bb3 {[%emt 0:00:05]} d6 {[%emt 0:00:09]} 8. h3 {[%emt 0:00:19]} Na5 {[%emt 0:05:17]} 9. Nc3 {[%emt 0:05:10]} O-O {[%emt 0:01:07]} 10. d3 {[%emt 0:01:45]} b4 {[%emt 0:09:35]} 11. Nd5 {[%emt 0:05:22]} Nxd5 {[%emt 0:00:28]} 12. exd5 {[%emt 0:00:05]} Nxb3 {[%emt 0:11:42]} 13. axb3 {[%emt 0:00:07]} f5 {[%emt 0:00:16]} 14. Bd2 {[%emt 0:01:00]} Bb7 {[%emt 0:00:06]} 15. Bxb4 {[%emt 0:16:44]} Bxd5 {[%emt 0:00:06]} 16. d4 {[%emt 0:09:38]} e4 {[%emt 0:08:32]} 17. Nh2 {[%emt 0:04:11]} Qe8 {[%emt 0:17:29]} 18. c4 {[%emt 0:01:28]} Bf7 {[%emt 0:00:07]} 19. Ba5 {[%emt 0:04:49]} c6 {[%emt 0:05:08]} 20. d5 {[%emt 0:14:15]} cxd5 {[%emt 0:00:34]} 21. cxd5 {[%emt 0:00:04]} Qb5 {[%emt 0:00:07]} 22. Bc3 {[%emt 0:00:22]} Qxd5 {[%emt 0:00:33]} 23. Qxd5 {[%emt 0:05:35]} Bxd5 {[%emt 0:00:05]} 24. b4 {[%emt 0:00:05]} f4 {[%emt 0:24:04]} 25. Ra5 {[%emt 0:01:51]} Bb7 {[%emt 0:00:06]} 26. Nf3 {[%emt 0:00:08]} Bd8 {[%emt 0:00:12]} 0-1

[Event "WYCC 2018 O14"]
[Site "Halkidiki"]
[Date "2018.10.26"]
[Round "7"]
[White "Dabarera, G W D M"]
[Black "Van Dael, Siem"]
[Result "0-1"]
[ECO "C29"]
[WhiteElo "1768"]
[BlackElo "2202"]
[Annotator "NA"]
[PlyCount "40"]
[EventDate "2018.10.20"]
[EventType "swiss"]
[EventCountry "GRE"]
[SourceTitle "playchess.com"]
[Source "ChessBase"]
[SourceQuality "1"]
[TimeControl "40/5400+30:1800+30"]

1. e4 {[%emt 0:00:00]} e5 {[%emt 0:00:00]} 2. Nc3 {[%emt 0:00:00]} Nf6 {[%emt 0:00:00]} 3. f4 {[%emt 0:00:00]} d5 {[%emt 0:00:00]} 4. fxe5 {[%emt 0:00:00]} Nxe4 $11 {[%emt 0:00:00]} 5. Qf3 {[%emt 0:02:30]} f5 {[%emt 0:00:00]} 6. d3 {[%emt 0:00:10]} Nxc3 {[%emt 0:00:05]} 7. bxc3 {[%emt 0:00:02]} d4 {[%emt 0:00:07]} 8. Ne2 {[%emt 0:01:08]} dxc3 {[%emt 0:01:50]} 9. Nf4 {[%emt 0:00:50]} g6 {[%emt 0:08:02]} 10. Be2 {[%emt 0:54:23]} Nc6 {[%emt 0:08:38]} 11. O-O {[%emt 0:09:16]} Bg7 {[%emt 0:17:12]} 12. Ba3 {[%emt 0:03:49]} Nd4 {[%emt 0:05:18]} 13. Qg3 {[%emt 0:01:48]} Ne6 {[%emt 0:15:10]} 14. Kh1 {[%emt 0:09:33]} Qd4 {[%emt 0:06:56]} 15. Nxe6 {[%emt 0:04:12]} Bxe6 {[%emt 0:00:08]} 16. Qg5 {[%emt 0:00:23]} c5 {[%emt 0:00:33]} 17. Rab1 {[%emt 0:05:07]} b6 {[%emt 0:00:39]} 18. Rf4 {[%emt 0:01:02]} Qxe5 {[%emt 0:01:02]} 19. Bf3 {[%emt 0:00:23]} Rd8 {[%emt 0:00:22]} 20. Bc6+ {[%emt 0:00:53]} Kf7 {[%emt 0:00:19]} 0-1

[Event "WYCC 2018 O14"]
[Site "Halkidiki"]
[Date "2018.10.27"]
[Round "8"]
[White "Bjerre, Jonas Buhl"]
[Black "Kushagra Mohan"]
[Result "1/2-1/2"]
[ECO "C80"]
[WhiteElo "2438"]
[BlackElo "2283"]
[Annotator "NA RC"]
[PlyCount "75"]
[EventDate "2018.10.20"]
[EventType "swiss"]
[EventCountry "GRE"]
[SourceTitle "playchess.com"]
[Source "ChessBase"]
[SourceQuality "1"]
[TimeControl "40/5400+30:1800+30"]

1. e4 {[%emt 0:00:00]} e5 {[%emt 0:00:00]} 2. Nf3 {[%emt 0:00:00]} Nc6 {[%emt 0:00:00]} 3. Bb5 {[%emt 0:00:08]} a6 {[%emt 0:00:00]} 4. Ba4 {[%emt 0:00:07]} Nf6 {[%emt 0:00:00]} 5. O-O {[%emt 0:00:32]} Nxe4 {[%emt 0:00:00]} 6. d4 {[%emt 0:00:47]} b5 {[%emt 0:00:00]} 7. Bb3 {[%emt 0:00:24]} d5 {[%emt 0:00:00]} 8. dxe5 {[%emt 0:00:39]} Be6 {[%emt 0:00:09]} 9. Nbd2 {[%emt 0:00:42]} Nc5 {[%emt 0:00:14]} 10. c3 {[%emt 0:02:54]} Be7 {[%emt 0:00:07]} 11. Bc2 $14 {[%emt 0:01:07] LiveBook: 663 Games} d4 {[%emt 0:00:14]} 12. Nb3 {[%emt 0:01:07]} d3 {[%emt 0:00:07]} 13. Bb1 {[%emt 0:01:14]} Nxb3 {[%emt 0:00:06]} 14. axb3 {[%emt 0:00:06]} Bf5 {[%emt 0:00:04]} 15. Re1 {[%emt 0:00:51]} O-O {[%emt 0:00:15]} 16. Be3 {[%emt 0:00:53]} Qd5 {[%emt 0:01:34]} 17. Bd4 {[%emt 0:00:34]} d2 {[%emt 0:00:09]} 18. Re2 {[%emt 0:02:32]} Bxb1 {[%emt 0:00:55]} 19. Rxb1 {[%emt 0:00:16]} Nxd4 {[%emt 0:00:57]} 20. Nxd4 {[%emt 0:00:59]} Bg5 {[%emt 0:00:47]} 21. g3 {[%emt 0:04:22]} c5 {[%emt 0:05:24]} 22. Nf5 {[%emt 0:03:50]} Qd3 {[%emt 0:02:00]} 23. Nd6 {[%emt 0:02:03]} Qg6 {[%emt 0:00:45]} 24. h4 {[%emt 0:02:39]} Bxh4 {[%emt 0:07:29]} 25. Rxd2 {[%emt 0:04:16]} Be7 {[%emt 0:17:44]} 26. Qe1 {[%emt 0:09:55]} Qe6 {[%emt 0:12:01]} 27. Qe3 {[%emt 0:10:17]} Bxd6 {[%emt 0:08:27]} 28. Rxd6 {[%emt 0:02:03]} Qxb3 {[%emt 0:00:29]} 29. Qxc5 {[%emt 0:01:18]} Qc2 {[%emt 0:09:05]} 30. Ra1 {[%emt 0:11:09]} Rac8 {[%emt 0:09:04]} 31. Qa3 {[%emt 0:06:01]} Qe4 {[%emt 0:01:40]} 32. Rad1 {[%emt 0:07:29]} Qxe5 {[%emt 0:06:45]} 33. Qxa6 {[%emt 0:01:30]} Rb8 {[%emt 0:00:07]} 34. Qa7 {[%emt 0:03:41]} h6 {[%emt 0:02:14]} 35. Qd4 {[%emt 0:01:51]} Rfe8 {[%emt 0:06:18]} 36. Rd5 {[%emt 0:06:26]} Qe2 {[%emt 0:01:19]} 37. Rd2 {[%emt 0:03:12]} Qf3 {[%emt 0:01:19]} 38. Rd1 {[%emt 0:05:47]} 1/2-1/2